fUSD/lending_fUSD_20240426
["ID","MTS","AMOUNT","RATE_DAILY","PERIOD"]
[323607759,1714109448912,-500.0,0.00012987,2]
[323607760,1714109448921,-500.0,0.00012987,2]
[323607761,1714109448931,-500.0,0.00012987,2]
[323607762,1714109448940,-500.0,0.00012987,2]
[323607763,1714109448949,-500.0,0.00012987,2]
[323607764,1714109448959,-500.0,0.00012987,2]
[323607765,1714109448968,-150.0,0.00012987,2]
[323607766,1714109448978,-500.0,0.00012987,2]
[323607767,1714109448987,-500.0,0.00012987,2]
[323607768,1714109448996,-500.0,0.00012987,2]
[323607769,1714109449006,-500.0,0.00012987,2]
[323607770,1714109449021,-500.0,0.00012987,2]
[323607771,1714109449031,-500.0,0.00012987,2]
[323607772,1714109449041,-500.0,0.00012987,2]
[323607773,1714109449050,-500.0,0.00012987,2]
[323607774,1714109449060,-1466.49,0.00012987,2]
[323607775,1714109449070,-500.0,0.00012987,2]
[323607776,1714109449079,-500.0,0.00012987,2]
[323607777,1714109449089,-500.0,0.00012987,2]
[323607778,1714109449098,-500.0,0.00012987,2]
[323607779,1714109449107,-500.0,0.00012987,2]
[323607780,1714109449116,-790.48,0.00012987,2]
[323607781,1714109449125,-500.0,0.00012987,2]
[323607782,1714109449134,-931.89,0.00012987,2]
[323607783,1714109449143,-500.0,0.00012987,2]
[323607784,1714109449153,-500.0,0.00012987,2]
[323607785,1714109449162,-500.0,0.00012987,2]
[323607786,1714109449171,-644.68,0.00012987,2]
[323607787,1714109449180,-500.0,0.00012987,2]
[323607788,1714109449189,-500.0,0.00012987,2]
[323607789,1714109449198,-500.0,0.00012987,2]
[323607790,1714109449207,-1085.7,0.00012987,2]
[323607791,1714109449216,-510.28,0.00012987,2]
[323607792,1714109449225,-1420.99,0.00012987,2]
[323607793,1714109449234,-500.0,0.00012987,2]
[323607794,1714109449243,-500.0,0.00012987,2]
[323607795,1714109449252,-1061.93,0.00012987,2]
[323607796,1714109449266,-500.0,0.00012987,2]
[323607797,1714109449275,-500.0,0.00012987,2]
[323607798,1714109449284,-500.0,0.00012987,2]
[323607799,1714109449294,-500.0,0.00012987,2]
[323607800,1714109449304,-500.0,0.00012987,2]
[323607801,1714109449313,-1415.46,0.00012987,2]
[323607802,1714109449322,-500.0,0.00012987,2]
[323607803,1714109449332,-2111.52,0.00012987,2]
[323607804,1714109449341,-500.0,0.00012987,2]
[323607805,1714109449352,-500.0,0.00012987,2]
[323607806,1714109449362,-3295.0,0.00012987,2]
[323607807,1714109449371,-1137.16,0.00012987,2]
[323607808,1714109449380,-1183.12,0.00012987,2]
[323607809,1714109449389,-500.0,0.00012987,2]
[323607810,1714109449398,-673.05,0.00012987,2]
[323607811,1714109449407,-500.0,0.00012987,2]
[323607812,1714109449417,-500.0,0.00012987,2]
[323607813,1714109449426,-500.0,0.00012987,2]
[323607814,1714109449435,-898.71,0.00012987,2]
[323607815,1714109449445,-604.42,0.00012987,2]
[323607816,1714109449454,-2328.04,0.00012987,2]
[323607817,1714109449463,-500.0,0.00012987,2]
[323607818,1714109449472,-500.0,0.00012987,2]
[323607819,1714109449481,-594.02,0.00012987,2]
[323607820,1714109449490,-500.0,0.00012987,2]
[323607821,1714109449499,-1073.48,0.00012987,2]
[323607822,1714109449511,-500.0,0.00012987,2]
[323607823,1714109449520,-5479.47,0.00012987,2]
[323607824,1714109449530,-500.0,0.00012987,2]
[323607825,1714109449543,-500.0,0.00012987,2]
[323607826,1714109449552,-2100.05,0.00012987,2]
[323607827,1714109449563,-500.0,0.00012987,2]
[323607828,1714109449574,-965.98,0.00012987,2]
[323607829,1714109449583,-509.68,0.00012987,2]
[323607830,1714109449592,-500.0,0.00012987,2]
[323607831,1714109449602,-500.0,0.00012987,2]
[323607832,1714109449613,-500.0,0.00012987,2]
[323607833,1714109449622,-412.89620767,0.00012987,2]
[323607834,1714109449631,-500.0,0.00012987,2]
[323607835,1714109449640,-361.26032125,0.00012987,2]
[323607836,1714109449649,-622.52,0.00012987,2]
[323607837,1714109449658,-500.0,0.00012987,2]
[323607838,1714109449667,-500.0,0.00012987,2]
[323607839,1714109449677,-1916.64,0.00012987,2]
[323607840,1714109449686,-406.20159994,0.00012988,2]
[323607841,1714109449695,-155.15597946,0.0001299,2]
[323607842,1714109449704,-155.15597946,0.0001299,2]
[323607843,1714109449713,-1577.31891804,0.00012993,2]
[323607844,1714109449722,-1923.75658816,0.00012993,2]
[323607845,1714109449731,-1340.07171355,0.00012993,2]
[323607846,1714109449740,-336.16820468,0.00012993,2]
[323607847,1714109449750,-1186.20667968,0.00012993,2]
[323607848,1714109449760,-340.6255,0.00012994,2]
[323607849,1714109449769,-892.85048398,0.00012994,2]
[323607850,1714109449778,-1445.08497739,0.00012994,2]
[323607851,1714109449787,-2478.22537668,0.00012994,2]
[323607852,1714109449797,-1048.0,0.00012995,2]
[323607853,1714109449806,-381306.04719977,0.00012995,2]
[323607854,1714109449815,-152837.7789802,0.00012995,2]
[323607855,1714109449824,-150.0,0.00012996,2]
[323607856,1714109449833,-1857848.91925049,0.00013,2]
[323607857,1714109450112,-525.99384435,0.00013,2]
[323607858,1714109450437,-500.0,0.00011343,2]
[323607859,1714109450447,-500.0,0.00011343,2]
[323607860,1714109450457,-500.0,0.00011343,2]
[323607861,1714109450467,-500.0,0.00011617,2]
[323607862,1714109450477,-500.0,0.00011891,2]
[323607863,1714109450487,-1056.0,0.0001203,2]
[323607864,1714109450498,-500.0,0.00012165,2]
[323607865,1714109450509,-500.0,0.00012439,2]
[323607866,1714109450519,-500.0,0.00012713,2]
[323607867,1714109450531,-8024.0,0.00013,2]
[323607868,1714109450828,-500.0,0.00011343,2]
[323607869,1714109450838,-500.0,0.00011343,2]
[323607870,1714109450848,-500.0,0.00012987,2]
[323607871,1714109450858,-568.85728271,0.00013,2]
[323607872,1714109450875,-13428.2,0.00013,2]
[323607873,1714109450897,-273.77749137,0.00011342,2]
[323607874,1714109450910,-96.14367684,0.00011342,2]
[323607875,1714109450920,-1340.38391988,0.00013,2]
[323607876,1714109622692,17653.18,0.00025,120]
[323607879,1714110207991,150.0,8.219e-05,2]
[323607880,1714110208013,106.52,8.219e-05,2]
[323607889,1714110631550,-82.03945001,9.883e-05,2]
[323607890,1714110631641,-154.56670507,9.883e-05,2]
[323607891,1714110631651,-246.17,9.884e-05,2]
[323607892,1714110631660,-256.52,0.0001047,2]
[323607893,1714110631670,-152.35,0.00010872,2]
[323607894,1714110631679,-500.0,0.00010959,2]
[323607895,1714110631689,-152.35,0.00010967,2]
[323607896,1714110631698,-152.35,0.00011061,2]
[323607897,1714110631707,-152.35,0.00011156,2]
[323607898,1714110631717,-150.0,0.00011242,2]
[323607899,1714110631726,-1455.36,0.00011243,2]
[323607900,1714110631735,-3315.53026669,0.00011243,2]
[323607901,1714110631748,-852.94314479,0.00011243,2]
[323607902,1714110631780,-2267.925,0.00011243,2]
[323607903,1714110631791,-4485.8420475,0.00011243,2]
[323607904,1714110631811,-3562.80071275,0.00011243,2]
[323607905,1714110631823,-4168.1130119,0.00011243,2]
[323607921,1714110637856,-81346.84581637,0.00011243,2]
[323607922,1714110637866,-152.35,0.0001125,2]
[323607923,1714110637875,-172.14589904,0.00011343,2]
[323607924,1714110637884,-500.0,0.00011343,2]
[323607925,1714110637894,-500.0,0.00011343,2]
[323607926,1714110637907,-501.26210222,0.00011343,2]
[323607927,1714110637916,-500.0,0.00011343,2]
[323607928,1714110637925,-500.0,0.00011343,2]
[323607929,1714110637935,-500.0,0.00011343,2]
[323607930,1714110637944,-503.90497579,0.00011343,2]
[323607931,1714110637953,-500.0,0.00011343,2]
[323607932,1714110637963,-500.0,0.00011343,2]
[323607933,1714110637972,-500.0,0.00011343,2]
[323607934,1714110637983,-500.0,0.00011343,2]
[323607935,1714110637993,-507.8132636,0.00011343,2]
[323607936,1714110638003,-500.0,0.00011343,2]
[323607937,1714110638013,-500.0,0.00011343,2]
[323607938,1714110638022,-500.0,0.00011343,2]
[323607939,1714110638033,-500.0,0.00011343,2]
[323607940,1714110638043,-327.27,0.00011343,2]
[323607941,1714110638052,-500.0,0.00011343,2]
[323607942,1714110638062,-500.0,0.00011343,2]
[323607943,1714110638072,-500.0,0.00011343,2]
[323607944,1714110638082,-500.0,0.00011343,2]
[323607945,1714110638092,-500.0,0.00011343,2]
[323607946,1714110638102,-500.0,0.00011343,2]
[323607947,1714110638111,-500.0,0.00011343,2]
[323607948,1714110638121,-500.0,0.00011343,2]
[323607949,1714110638130,-500.0,0.00011343,2]
[323607950,1714110638140,-500.0,0.00011343,2]
[323607951,1714110638149,-500.0,0.00011343,2]
[323607952,1714110638159,-500.0,0.00011343,2]
[323607953,1714110638169,-500.0,0.00011343,2]
[323607954,1714110638178,-500.0,0.00011343,2]
[323607955,1714110638188,-500.0,0.00011343,2]
[323607956,1714110638197,-500.0,0.00011343,2]
[323607957,1714110638207,-500.0,0.00011343,2]
[323607959,1714110638217,-500.0,0.00011343,2]
[323607961,1714110638226,-500.0,0.00011343,2]
[323607963,1714110638236,-500.0,0.00011343,2]
[323607965,1714110638245,-500.0,0.00011343,2]
[323607967,1714110638255,-500.0,0.00011343,2]
[323607969,1714110638264,-268.25352901,0.00011343,2]
[323607971,1714110638274,-500.0,0.00011343,2]
[323607973,1714110638287,-500.0,0.00011343,2]
[323607975,1714110638296,-500.0,0.00011343,2]
[323607976,1714110638305,-500.0,0.00011343,2]
[323607977,1714110638314,-500.0,0.00011343,2]
[323607978,1714110638323,-357.0728604,0.00011343,2]
[323607979,1714110638333,-500.0,0.00011343,2]
[323607980,1714110638342,-625.26588897,0.00011343,2]
[323607981,1714110638351,-500.0,0.00011343,2]
[323607982,1714110638361,-502.65488263,0.00011343,2]
[323607983,1714110638374,-500.0,0.00011343,2]
[323607984,1714110638384,-500.0,0.00011343,2]
[323607985,1714110638393,-500.0,0.00011343,2]
[323607986,1714110638402,-500.0,0.00011343,2]
[323607987,1714110638411,-500.0,0.00011343,2]
[323607988,1714110638422,-500.0,0.00011343,2]
[323607989,1714110638431,-152.35,0.00011344,2]
[323607990,1714110638441,-165.3,0.00011405,2]
[323607991,1714110638451,-152.35,0.00011439,2]
[323607992,1714110638460,-502.55052839,0.00011449,2]
[323607993,1714110638470,-500.0,0.00011449,2]
[323607994,1714110638479,-500.0,0.00011449,2]
[323607995,1714110638489,-500.0,0.00011449,2]
[323607996,1714110638498,-500.0,0.00011449,2]
[323607997,1714110638509,-500.0,0.00011449,2]
[323607998,1714110638518,-500.0,0.00011449,2]
[323607999,1714110638528,-500.0,0.00011449,2]
[323608000,1714110638541,-421.75603333,0.00011449,2]
[323608001,1714110638550,-542.03205709,0.00011449,2]
[323608002,1714110638559,-500.0,0.00011449,2]
[323608003,1714110638569,-500.0,0.00011449,2]
[323608004,1714110638578,-500.0,0.00011449,2]
[323608005,1714110638587,-500.0,0.00011449,2]
[323608006,1714110638597,-500.0,0.00011449,2]
[323608007,1714110638606,-500.0,0.00011449,2]
[323608008,1714110638616,-500.0,0.00011449,2]
[323608009,1714110638625,-500.0,0.00011449,2]
[323608010,1714110638634,-599.72,0.00011449,2]
[323608011,1714110638644,-500.0,0.00011449,2]
[323608012,1714110638653,-500.0,0.00011449,2]
[323608013,1714110638662,-500.0,0.00011449,2]
[323608014,1714110638672,-500.0,0.00011449,2]
[323608015,1714110638681,-500.0,0.00011449,2]
[323608016,1714110638691,-500.0,0.00011449,2]
[323608017,1714110638700,-840.7,0.00011449,2]
[323608018,1714110638709,-237.46,0.00011449,2]
[323608019,1714110638718,-500.0,0.00011449,2]
[323608020,1714110638728,-500.0,0.00011449,2]
[323608021,1714110638737,-500.0,0.00011449,2]
[323608022,1714110638747,-1671.62,0.00011449,2]
[323608023,1714110638756,-500.0,0.00011449,2]
[323608024,1714110638765,-500.0,0.00011449,2]
[323608025,1714110638774,-500.0,0.00011449,2]
[323608026,1714110638786,-500.0,0.00011449,2]
[323608027,1714110638796,-500.0,0.00011449,2]
[323608028,1714110638805,-500.0,0.00011449,2]
[323608029,1714110638816,-500.0,0.00011449,2]
[323608030,1714110638826,-500.0,0.00011449,2]
[323608031,1714110638835,-500.0,0.00011449,2]
[323608032,1714110638846,-500.0,0.00011449,2]
[323608033,1714110638857,-500.0,0.00011449,2]
[323608034,1714110638867,-2608.55,0.00011449,2]
[323608035,1714110638876,-500.0,0.00011449,2]
[323608036,1714110638885,-500.0,0.00011449,2]
[323608037,1714110638895,-500.0,0.00011449,2]
[323608038,1714110638909,-504.58065835,0.00011449,2]
[323608039,1714110638920,-573.82,0.00011449,2]
[323608040,1714110638929,-500.0,0.00011449,2]
[323608041,1714110638939,-500.57,0.00011449,2]
[323608042,1714110638951,-500.0,0.00011449,2]
[323608043,1714110638960,-500.0,0.00011449,2]
[323608044,1714110638970,-500.0,0.00011449,2]
[323608045,1714110638980,-1517.34,0.00011449,2]
[323608046,1714110638989,-500.0,0.00011449,2]
[323608047,1714110638999,-500.0,0.00011449,2]
[323608048,1714110639008,-500.0,0.00011449,2]
[323608049,1714110639017,-500.0,0.00011449,2]
[323608050,1714110639027,-500.0,0.00011449,2]
[323608051,1714110639039,-500.0,0.00011449,2]
[323608052,1714110639049,-500.0,0.00011449,2]
[323608053,1714110639058,-764.74,0.00011449,2]
[323608054,1714110639067,-500.0,0.00011449,2]
[323608055,1714110639077,-500.0,0.00011449,2]
[323608056,1714110639086,-499.99,0.0001145,2]
[323608057,1714110639095,-12615.64617632,0.0001145,2]
[323608058,1714110639104,-27694.85345355,0.00011542,2]
[323608059,1714110639113,-745.63,0.00011606,2]
[323608060,1714110639123,-500.0,0.00011615,2]
[323608061,1714110639133,-500.0,0.00011615,2]
[323608062,1714110639142,-157.48752869,0.00011615,2]
[323608063,1714110639152,-500.0,0.00011615,2]
[323608064,1714110639161,-500.0,0.00011615,2]
[323608065,1714110639172,-936.64,0.00011615,2]
[323608066,1714110639181,-1120.57,0.00011615,2]
[323608067,1714110639191,-500.0,0.00011615,2]
[323608068,1714110639200,-500.0,0.00011615,2]
[323608069,1714110639209,-192.32057024,0.00011615,2]
[323608072,1714110642886,-707.93942976,0.00011615,2]
[323608073,1714110642895,-500.0,0.00011615,2]
[323608074,1714110642910,-500.0,0.00011615,2]
[323608075,1714110642920,-500.0,0.00011615,2]
[323608076,1714110642932,-500.0,0.00011615,2]
[323608077,1714110642941,-849.83,0.00011615,2]
[323608078,1714110642950,-711.48,0.00011615,2]
[323608079,1714110642960,-500.0,0.00011615,2]
[323608080,1714110642969,-500.0,0.00011615,2]
[323608081,1714110642979,-4337.91,0.00011615,2]
[323608082,1714110642988,-500.0,0.00011615,2]
[323608083,1714110642997,-500.0,0.00011615,2]
[323608084,1714110643006,-500.0,0.00011615,2]
[323608085,1714110643016,-500.0,0.00011615,2]
[323608086,1714110643026,-161.34198229,0.00011615,2]
[323608090,1714111335859,-254.92615508,8.659e-05,2]
[323608091,1714111483136,-404.8762609,8.659e-05,2]
[323608092,1714111483660,-162.14721555,8.659e-05,2]
[323608093,1714111484241,-322.58871682,8.659e-05,2]
[323608094,1714111501233,-340.78953841,8.659e-05,2]
[323608095,1714111501818,-252.2852571,8.659e-05,2]
[323608096,1714111515304,-494.22899626,8.659e-05,2]
[323608097,1714111533159,-494.22899626,8.659e-05,2]
[323608098,1714111555183,-257.49330705,8.659e-05,2]
[323608099,1714111571105,-257.49330705,8.659e-05,2]
[323608100,1714111587358,-257.49330705,8.659e-05,2]
[323608101,1714111609142,-257.49330705,8.659e-05,2]
[323608102,1714111631169,-257.49330705,8.659e-05,2]
[323608103,1714111653117,-257.49330705,8.659e-05,2]
[323608104,1714111673228,-257.49330705,8.659e-05,2]
[323608105,1714111695261,-257.49330705,8.659e-05,2]
[323608106,1714111719340,-411.19852491,8.659e-05,2]
[323608107,1714111723242,-383.06997964,8.659e-05,2]
[323608108,1714111725015,-370.12698549,8.658e-05,2]
[323608109,1714111739209,-450.0,8.659e-05,2]
[323608142,1714111832103,-3.24384492,8.659e-05,2]
[323608143,1714111832114,-313.87560554,9.027e-05,2]
[323608144,1714111832125,-236.60615508,9.028e-05,2]
[323608145,1714111832135,-162.14721555,9.029e-05,2]
[323608146,1714111832145,-149.58746708,9.03e-05,2]
[323608147,1714111832158,-255.28879382,9.03e-05,2]
[323608148,1714111832169,-3414.39160666,9.03e-05,2]
[323608149,1714111832180,-1147.61449084,9.034e-05,2]
[323608150,1714111832190,-1500.0,9.036e-05,2]
[323608151,1714111832200,-165.3,0.00010277,2]
[323608152,1714111832211,-634.48,0.00010293,2]
[323608153,1714111832221,-167.96,0.0001038,2]
[323608154,1714111832232,-396.54,0.00010582,2]
[323608155,1714111832242,-156.77,0.0001061,2]
[323608156,1714111832253,-165.3,0.00010612,2]
[323608157,1714111832265,-152.73,0.00010641,2]
[323608158,1714111832277,-499.99,0.00010641,2]
[323608159,1714111832287,-156.77,0.00010887,2]
[323608160,1714111832299,-258.17,0.00010923,2]
[323608161,1714111832311,-500.0,0.00010959,2]
[323608162,1714111832322,-200.0,0.00011,2]
[323608163,1714111832333,-180.24,0.00011069,2]
[323608164,1714111832345,-156.77,0.00011163,2]
[323608165,1714111832357,-1544.72335428,0.00011198,2]
[323608166,1714111832370,-309.31034047,0.00011198,2]
[323608167,1714111832383,-2407.94347744,0.00011198,2]
[323608168,1714111832397,-308.807424,0.00011198,2]
[323608169,1714111832409,-253.92241788,0.00011198,2]
[323608170,1714111832422,-317.65,0.00011198,2]
[323608171,1714111832436,-643.59914021,0.00011198,2]
[323608172,1714111832448,-1015.83173565,0.00011198,2]
[323608175,1714111832465,-299.66504719,0.00011198,2]
[323608176,1714111832477,-4358.46356288,0.00011198,2]
[323608177,1714111832488,-14822.85856809,0.00011348,2]
[323608178,1714111832498,-3528.26702556,0.0001144,2]
[323608179,1714111832508,-13145.9089,0.00011442,2]
[323608181,1714111832518,-500.0,0.00011449,2]
[323608182,1714111832528,-500.0,0.00011449,2]
[323608183,1714111832539,-610.1501248,0.00011449,2]
[323608184,1714111832550,-500.0,0.00011449,2]
[323608185,1714111832560,-500.0,0.00011449,2]
[323608186,1714111832570,-500.0,0.00011449,2]
[323608187,1714111832580,-500.0,0.00011449,2]
[323608188,1714111832590,-500.0,0.00011449,2]
[323608189,1714111832600,-500.0,0.00011449,2]
[323608190,1714111832610,-520.47403052,0.00011449,2]
[323608191,1714111832619,-500.0,0.00011449,2]
[323608192,1714111832629,-500.0,0.00011449,2]
[323608193,1714111832639,-503.23147874,0.00011449,2]
[323608194,1714111832650,-504.51430571,0.00011449,2]
[323608195,1714111832660,-501.16495413,0.00011449,2]
[323608196,1714111832670,-504.33758682,0.00011449,2]
[323608197,1714111832680,-500.0,0.00011449,2]
[323608198,1714111832689,-500.0,0.00011449,2]
[323608199,1714111832699,-4809.42053919,0.0001145,2]
[323608200,1714111832712,-759.501,0.0001145,2]
[323608201,1714111832724,-5532.24478997,0.0001145,2]
[323608202,1714111832740,-324.22332489,0.0001145,2]
[323608203,1714111832756,-341.48088377,0.0001145,2]
[323608204,1714111832786,-848.7756385,0.0001145,2]
[323608205,1714111832797,-2202.34488,0.000115,2]
[323608206,1714111832807,-1000.0,0.00011516,2]
[323608207,1714111832817,-1798.52921671,0.00011539,2]
[323608208,1714111832827,-6527.19967501,0.0001154,2]
[323608209,1714111832839,-1290.90309334,0.0001154,2]
[323608210,1714111832851,-469.63521555,0.0001154,2]
[323608211,1714111832863,-659.47,0.0001154,2]
[323608212,1714111832875,-761.63633013,0.0001154,2]
[323608213,1714111832887,-505.38615579,0.0001154,2]
[323608214,1714111832899,-1576.35194131,0.0001154,2]
[323608215,1714111832916,-833.79793316,0.0001154,2]
[323608216,1714111832929,-318.86689986,0.0001154,2]
[323608217,1714111832942,-660.722,0.0001154,2]
[323608218,1714111832956,-2305.03777212,0.0001154,2]
[323608231,1714111837770,-1456.87646204,0.00010959,2]
[323608232,1714111838094,-2876.73302081,0.00010959,2]
[323608233,1714111838132,-5262.14051715,0.00010959,2]
[323608234,1714111838144,-11785.84643728,0.0001154,2]
[323608235,1714111838154,-634.48,0.0001158,2]
[323608236,1714111838163,-500.0,0.00011615,2]
[323608237,1714111838172,-500.0,0.00011615,2]
[323608238,1714111838182,-500.0,0.00011615,2]
[323608239,1714111838191,-501.04512149,0.00011616,2]
[323608240,1714111838200,-501.6049819,0.00011616,2]
[323608241,1714111838209,-288.3825673,0.00011616,2]
[323608242,1714111838218,-500.62091993,0.00011616,2]
[323608243,1714111838227,-500.0,0.00011616,2]
[323608244,1714111838236,-501.16124831,0.00011616,2]
[323608245,1714111838245,-500.40232464,0.00011616,2]
[323608246,1714111838254,-501.27107146,0.00011616,2]
[323608247,1714111838267,-503.50981775,0.00011616,2]
[323608248,1714111838283,-500.60704616,0.00011616,2]
[323608249,1714111838292,-302.3473675,0.00011616,2]
[323608250,1714111838302,-500.0,0.00011616,2]
[323608251,1714111838312,-531.72176248,0.00011616,2]
[323608252,1714111838321,-500.9029592,0.00011616,2]
[323608253,1714111838330,-388.03111867,0.00011616,2]
[323608254,1714111838339,-502.17420268,0.00011616,2]
[323608255,1714111838348,-501.07481605,0.00011616,2]
[323608256,1714111838359,-520.68967267,0.00011616,2]
[323608257,1714111838368,-502.46911898,0.00011616,2]
[323608258,1714111838377,-500.0,0.00011616,2]
[323608259,1714111838386,-501.56513631,0.00011616,2]
[323608260,1714111838396,-509.11457019,0.00011616,2]
[323608261,1714111838406,-502.68584487,0.00011616,2]
[323608262,1714111838415,-500.0,0.00011723,2]
[323608263,1714111838424,-500.0,0.00011723,2]
[323608264,1714111838434,-463.17373239,0.00011723,2]
[323608265,1714111838443,-500.0,0.00011723,2]
[323608266,1714111838453,-52011.5546506,0.00011768,2]
[323608267,1714111838484,-9594.6637494,0.00011768,2]
[323608268,1714111838493,-5896.0,0.00011868,2]
[323608269,1714111838503,-5724.0,0.00011868,2]
[323608270,1714111838512,-12315.48301969,0.00011868,2]
[323608271,1714111838718,-20815.9729585,0.00011868,2]
[323608272,1714111838730,-4582.54402181,0.00011868,2]
[323608273,1714111838740,-1056.0,0.00011868,2]
[323608274,1714111838749,-733.08,0.00011878,2]
[323608275,1714111838758,-500.0,0.00011887,2]
[323608276,1714111838767,-205.34086584,0.00011887,2]
[323608277,1714111838797,-294.65913416,0.00011887,2]
[323608278,1714111838807,-500.0,0.00011887,2]
[323608279,1714111838817,-501.81740213,0.00011887,2]
[323608280,1714111838826,-500.0,0.00011887,2]
[323608281,1714111838835,-500.0,0.00011887,2]
[323608282,1714111838845,-554.70493632,0.00011887,2]
[323608283,1714111838855,-500.0,0.00011887,2]
[323608284,1714111838863,-1120.57,0.00011887,2]
[323608285,1714111838873,-958.51,0.00011887,2]
[323608286,1714111838882,-500.0,0.00011887,2]
[323608287,1714111838891,-500.0,0.00011887,2]
[323608288,1714111838901,-870.76,0.00011887,2]
[323608289,1714111838909,-500.0,0.00011887,2]
[323608290,1714111838919,-500.0,0.00011887,2]
[323608291,1714111838938,-500.0,0.00011887,2]
[323608292,1714111838948,-500.0,0.00011887,2]
[323608293,1714111838957,-814.42,0.00011887,2]
[323608294,1714111838966,-500.0,0.00011887,2]
[323608295,1714111838976,-500.0,0.00011887,2]
[323608296,1714111838985,-4157.17,0.00011887,2]
[323608297,1714111838995,-500.0,0.00011887,2]
[323608298,1714111839004,-500.0,0.00011887,2]
[323608299,1714111839014,-500.0,0.00011887,2]
[323608300,1714111839024,-500.0,0.00011887,2]
[323608301,1714111839033,-500.0,0.00011887,2]
[323608302,1714111839042,-500.0,0.00011887,2]
[323608303,1714111839053,-500.0,0.00011887,2]
[323608304,1714111839063,-500.0,0.00011887,2]
[323608305,1714111839073,-1160.98,0.00011887,2]
[323608306,1714111839083,-500.0,0.00011887,2]
[323608307,1714111839092,-500.0,0.00011887,2]
[323608308,1714111839103,-500.0,0.00011887,2]
[323608309,1714111839113,-503.63766092,0.00011888,2]
[323608310,1714111839123,-500.0,0.00011888,2]
[323608311,1714111839132,-502.55052839,0.00011888,2]
[323608312,1714111839141,-500.0,0.00011888,2]
[323608313,1714111839150,-500.0,0.00011888,2]
[323608314,1714111839161,-158.16,0.00011888,2]
[323608315,1714111839171,-502.00729791,0.00011888,2]
[323608316,1714111839181,-500.0,0.00011888,2]
[323608317,1714111839190,-500.0,0.00011888,2]
[323608318,1714111839199,-500.0,0.00011888,2]
[323608319,1714111839209,-500.0,0.00011888,2]
[323608320,1714111839223,-500.0,0.00011888,2]
[323608321,1714111839233,-421.75603333,0.00011888,2]
[323608322,1714111839242,-500.0,0.00011888,2]
[323608323,1714111839252,-542.03205709,0.00011888,2]
[323608324,1714111839262,-500.0,0.00011888,2]
[323608325,1714111839276,-500.0,0.00011888,2]
[323608326,1714111839285,-500.0,0.00011888,2]
[323608327,1714111839295,-500.0,0.00011888,2]
[323608328,1714111839306,-500.0,0.00011888,2]
[323608329,1714111839316,-500.0,0.00011888,2]
[323608330,1714111839328,-500.0,0.00011888,2]
[323608331,1714111839337,-500.0,0.00011888,2]
[323608332,1714111839349,-300.61963401,0.00011888,2]
[323608333,1714111839359,-567.19349719,0.00011888,2]
[323608334,1714111839369,-41.8387311,0.00011888,2]
[323608335,1714111840070,-458.1612689,0.00011888,2]
[323608336,1714111840081,-500.0,0.00011888,2]
[323608337,1714111840090,-507.70933141,0.00011888,2]
[323608338,1714111840099,-18.53179212,0.00011888,2]
[323608339,1714111840110,-477.7644301,0.00011888,2]
[323608340,1714111840179,-3.70377778,0.00011888,2]
[323608341,1714111840189,-503.70548268,0.00011888,2]
[323608342,1714111840198,-500.0,0.00011888,2]
[323608343,1714111840207,-500.0,0.00011888,2]
[323608344,1714111840217,-397.73461429,0.00011888,2]